bitfinex-derivatives/quotes_BTCF0:USTF0_20250703
["timestamp","ask_amount","ask_price","bid_price","bid_amount"]
[1751530531172,0.77051245,109470.0,109460.0,0.93874406]
[1751530532779,0.5226374,109470.0,109460.0,0.93874406]
[1751530533073,0.77051245,109470.0,109460.0,0.93874406]
[1751530534475,0.77051245,109470.0,109460.0,0.69086901]
[1751530534677,0.77051245,109470.0,109460.0,0.93874406]
[1751530535874,0.77051245,109470.0,109460.0,0.69086901]
[1751530536076,0.83111245,109470.0,109460.0,0.93874406]
[1751530536272,0.83111245,109470.0,109460.0,0.69086901]
[1751530536476,0.83111245,109470.0,109460.0,0.93874406]
[1751530538976,0.5832374,109470.0,109460.0,0.93874406]
[1751530539172,0.83111245,109470.0,109460.0,0.93874406]
[1751530540180,0.5832374,109470.0,109460.0,0.93874406]
[1751530540377,0.83111245,109470.0,109460.0,0.93874406]
[1751530540676,0.5832374,109470.0,109460.0,0.93874406]
[1751530540878,0.83111245,109470.0,109460.0,0.93874406]
[1751530543071,0.83111245,109470.0,109460.0,0.96607125]
[1751530548885,0.83111245,109470.0,109460.0,0.92962876]
[1751530550082,0.5832374,109470.0,109460.0,0.92962876]
[1751530550283,0.83111245,109470.0,109460.0,0.92962876]
[1751530552384,0.83111245,109470.0,109460.0,0.91595614]
[1751530552581,0.83111245,109470.0,109460.0,0.92964153]
[1751530553190,0.5832374,109470.0,109460.0,0.92964153]
[1751530553376,0.83111245,109470.0,109460.0,0.92964153]
[1751530554990,0.83111245,109470.0,109460.0,0.96608402]
[1751530557289,0.83111245,109470.0,109460.0,0.92964153]
[1751530559289,0.83111245,109470.0,109460.0,0.96608402]
[1751530559590,0.83111245,109470.0,109460.0,0.60528402]
[1751530559790,0.83111245,109470.0,109460.0,0.96608402]
[1751530560991,0.83111245,109470.0,109460.0,0.96602166]
[1751530561691,0.83111245,109470.0,109460.0,0.71814661]
[1751530561890,0.83111245,109470.0,109460.0,0.96602166]
[1751530563887,0.83111245,109470.0,109460.0,0.9660212]
[1751530565095,0.83111245,109470.0,109460.0,0.71814615]
[1751530565299,0.83111245,109470.0,109460.0,0.9660212]
[1751530567397,0.83111245,109470.0,109460.0,0.92957871]
[1751530571198,0.83111245,109470.0,109460.0,0.9660212]
[1751530571399,0.83111245,109470.0,109460.0,0.92957871]
[1751530571902,0.83111245,109470.0,109460.0,0.68170366]
[1751530572096,0.83111245,109470.0,109460.0,0.92957871]
[1751530572295,0.83111245,109470.0,109460.0,0.9660212]
[1751530572497,0.83111245,109470.0,109460.0,0.92957871]
[1751530573001,0.83111245,109470.0,109460.0,0.9660212]
[1751530573195,0.83111245,109470.0,109460.0,0.6052212]
[1751530573400,0.83111245,109470.0,109460.0,0.56877871]
[1751530575800,0.83111245,109470.0,109460.0,0.6052212]
[1751530578406,0.83111245,109470.0,109460.0,0.56877871]
[1751530579405,0.83111245,109470.0,109460.0,0.6052212]
[1751530582307,0.83111245,109470.0,109460.0,0.60526199]
[1751530584100,0.83111245,109470.0,109460.0,0.17473304]
[1751530584308,1.4397875,109470.0,109460.0,0.08143304]
[1751530584507,2.34600449,109470.0,109460.0,0.04499055]
[1751530584706,2.59387954,109470.0,109460.0,0.04499055]
[1751530585212,2.5390875,109470.0,109460.0,0.01766336]
[1751530585615,2.29121245,109470.0,109460.0,0.01766336]
[1751530586313,2.30628049,109470.0,109460.0,0.01766336]
[1751530587416,2.30628049,109470.0,109460.0,0.004]
[1751530590018,2.29121245,109470.0,109460.0,0.004]
[1751530590216,2.30643201,109470.0,109460.0,0.004]
[1751530591018,2.30643201,109470.0,109460.0,0.25187505]
[1751530596223,2.29121245,109470.0,109460.0,0.25187505]
[1751530597021,2.306185,109470.0,109460.0,0.25187505]
[1751530598026,1.238385,109470.0,109460.0,0.25187505]
[1751530598226,2.306065,109470.0,109460.0,0.25187505]
[1751530598922,2.306065,109470.0,109460.0,0.004]
[1751530599122,2.306065,109470.0,109460.0,0.25187505]
[1751530599926,2.29109245,109470.0,109460.0,0.004]
[1751530600427,2.0432174,109470.0,109460.0,0.004]
[1751530600724,1.63544028,109470.0,109460.0,0.682404]
[1751530601021,0.19754028,109470.0,109460.0,1.1660158]
[1751530601327,0.55754028,109470.0,109460.0,1.1660158]
[1751530601923,0.5426374,109470.0,109460.0,1.1660158]
[1751530602230,0.1826374,109470.0,109460.0,1.1660158]
[1751530602430,0.4926374,109470.0,109460.0,1.1660158]
[1751530602623,0.4926374,109470.0,109460.0,1.19278011]
[1751530602824,0.1826372,109470.0,109460.0,1.19278011]
[1751530603028,0.57481385,109480.0,109470.0,0.1826372]
[1751530603029,1.4018421,109480.0,109470.0,0.1826372]
[1751530603228,1.53396705,109480.0,109470.0,0.93997642]
[1751530603425,0.69928705,109480.0,109470.0,0.93997642]
[1751530604221,0.57847165,109480.0,109470.0,1.18785147]
[1751530604527,0.19847165,109480.0,109470.0,0.97641891]
[1751530604730,0.51847165,109480.0,109470.0,0.97641891]
[1751530605119,0.51847165,109480.0,109470.0,0.69210137]
[1751530605318,0.53847165,109480.0,109470.0,0.93997642]
[1751530605928,0.53847165,109480.0,109470.0,0.94914233]
[1751530607331,0.44817509,109490.0,109480.0,0.1826206]
[1751530607332,0.00013734,109490.0,109480.0,0.1826206]
[1751530607532,0.30028939,109520.0,109510.0,0.1825705]
[1751530607832,0.8333617,109520.0,109510.0,0.05401772]
[1751530608031,0.58548665,109520.0,109510.0,0.57846327]
[1751530608337,0.30984575,109520.0,109510.0,0.91200986]
[1751530608528,0.65125493,109520.0,109510.0,0.91200986]
[1751530609034,0.65125493,109520.0,109510.0,0.93926327]
[1751530609240,0.65125493,109520.0,109510.0,0.91200986]
[1751530609930,0.65525493,109520.0,109510.0,0.91300986]
[1751530610330,0.65825493,109520.0,109510.0,0.91300986]
[1751530611027,0.34825493,109520.0,109510.0,0.91300986]
[1751530611235,0.64825493,109520.0,109510.0,0.91300986]
[1751530614936,0.64825493,109520.0,109510.0,0.88624555]
[1751530617044,0.89612998,109520.0,109510.0,0.88624555]
[1751530617340,0.27825493,109520.0,109510.0,0.88624555]
[1751530617541,0.68612998,109520.0,109510.0,0.88624555]
[1751530617838,0.73892998,109520.0,109510.0,0.88624555]
[1751530618044,0.34105493,109520.0,109510.0,0.88624555]
[1751530618445,0.71105493,109520.0,109510.0,0.88624555]
[1751530619146,0.34105493,109520.0,109510.0,0.88624555]
[1751530619345,0.48105493,109520.0,109510.0,0.88624555]
[1751530619647,0.67105493,109520.0,109510.0,0.88624555]
[1751530621842,0.02429185,109520.0,109510.0,1.9681606]
[1751530622042,0.009,109520.0,109510.0,2.42500851]
[1751530622243,0.009,109520.0,109510.0,2.38500851]
[1751530622547,0.1915539,109520.0,109510.0,2.64500851]
[1751530622846,0.1915539,109520.0,109510.0,2.38500851]
[1751530623345,0.1915539,109520.0,109510.0,2.57500851]
[1751530623744,0.1915539,109520.0,109510.0,2.86750851]
[1751530623949,0.1915539,109520.0,109510.0,2.61934619]
[1751530624248,0.1915539,109520.0,109510.0,2.6465996]
[1751530624249,0.009,109520.0,109510.0,2.6465996]
[1751530624447,0.1915537,109520.0,109510.0,2.6300485]
[1751530624649,0.1915537,109520.0,109510.0,2.65730191]
[1751530625535,0.009,109520.0,109510.0,2.65730191]
[1751530625933,0.1915537,109520.0,109510.0,2.65730191]
[1751530626345,0.1915537,109520.0,109510.0,2.83992591]
[1751530627250,0.1915537,109520.0,109510.0,3.20072591]
[1751530627451,0.009,109520.0,109510.0,3.20072591]
[1751530628750,0.009,109520.0,109510.0,3.03072591]
[1751530629642,0.009,109520.0,109510.0,2.84810191]
[1751530630547,0.009,109520.0,109510.0,2.84810172]
[1751530631948,0.009,109520.0,109510.0,2.85718619]
[1751530633252,0.009,109520.0,109510.0,2.91184993]
[1751530633653,0.005,109520.0,109510.0,2.91184993]
[1751530634252,0.005,109520.0,109510.0,2.87551205]
[1751530634551,0.002,109520.0,109510.0,2.87551205]
[1751530638258,0.002,109520.0,109510.0,2.89231552]
[1751530638559,0.002,109520.0,109510.0,2.83765178]
[1751530639059,0.31676429,109540.0,109530.0,0.1825371]
[1751530639357,0.3505042,109550.0,109540.0,0.1825204]
[1751530639553,0.7736042,109550.0,109540.0,0.49487123]
[1751530640556,0.7736042,109550.0,109540.0,0.53115842]
[1751530640758,0.7736042,109550.0,109540.0,0.28357064]
[1751530640961,0.7736042,109550.0,109540.0,0.53115842]
[1751530641351,0.7736042,109550.0,109540.0,0.49587123]
[1751530641563,0.7319749,109550.0,109540.0,0.64537064]
[1751530641759,0.7319749,109550.0,109540.0,0.86574466]
[1751530642055,0.6863463,109550.0,109540.0,0.86574466]
[1751530642261,0.6853463,109550.0,109540.0,0.86474466]
[1751530642462,0.75789281,109550.0,109540.0,0.86474466]
[1751530643358,0.75789281,109550.0,109540.0,0.89194024]
[1751530643557,0.76189281,109550.0,109540.0,0.89294024]
[1751530644060,0.75789281,109550.0,109540.0,0.89194024]
[1751530644261,0.76289281,109550.0,109540.0,0.86574466]
[1751530644464,0.76289281,109550.0,109540.0,0.89293914]
[1751530646261,0.76289281,109550.0,109540.0,0.53213914]
[1751530646460,0.76289281,109550.0,109540.0,0.89293914]
[1751530646663,0.76289281,109550.0,109540.0,0.90217472]
[1751530646864,0.76289281,109550.0,109540.0,0.89293914]
[1751530647165,0.76289281,109550.0,109540.0,0.86574466]
[1751530647865,0.76289281,109550.0,109540.0,1.11325036]
[1751530649368,0.76289281,109550.0,109540.0,1.17690323]
[1751530652266,0.76289281,109550.0,109540.0,1.12247244]
[1751530653869,0.76289281,109550.0,109540.0,1.11325036]
[1751530656582,0.76289281,109550.0,109540.0,0.75245036]
[1751530656872,0.76289281,109550.0,109540.0,0.77966228]
[1751530659577,0.76289281,109550.0,109540.0,0.7689609]
[1751530660275,0.76289281,109550.0,109540.0,0.27386742]
[1751530660574,0.76289281,109550.0,109540.0,0.7689609]
[1751530662974,0.76289281,109550.0,109540.0,0.74211299]
[1751530663371,0.76289281,109550.0,109540.0,0.71652669]
[1751530666381,0.73179281,109550.0,109540.0,0.75281388]
[1751530666875,0.73179281,109550.0,109540.0,0.71652669]
[1751530667276,0.73179281,109550.0,109540.0,0.75281388]
[1751530668272,0.73179281,109550.0,109540.0,0.77957609]
[1751530668474,0.73179281,109550.0,109540.0,0.75236417]
[1751530668773,0.73179281,109550.0,109540.0,0.77336328]
[1751530669179,0.73179281,109550.0,109540.0,0.82779407]
[1751530669881,0.73179281,109550.0,109540.0,0.79609407]
[1751530670277,0.73179281,109550.0,109540.0,0.76933186]
[1751530670477,0.73179281,109550.0,109540.0,0.80193186]
[1751530673277,0.73179281,109550.0,109540.0,0.75820196]
[1751530673473,0.73179281,109550.0,109540.0,0.82160196]
[1751530676182,0.73179281,109550.0,109540.0,0.84844628]
[1751530677280,0.66869281,109550.0,109540.0,0.84844628]
[1751530679883,0.66869281,109550.0,109540.0,0.89217618]
[1751530684281,0.66869281,109550.0,109540.0,0.84844628]
[1751530686284,0.66869281,109550.0,109540.0,0.84850905]
[1751530687578,0.66869281,109550.0,109540.0,1.20930905]
[1751530687884,0.30869281,109550.0,109540.0,1.21930905]
[1751530688285,0.68869281,109550.0,109540.0,1.21930905]
[1751530688680,0.68869281,109550.0,109540.0,1.20930905]
[1751530689180,0.68869281,109550.0,109540.0,0.71421557]
[1751530689381,0.68869281,109550.0,109540.0,1.20930905]
[1751530690089,0.68869281,109550.0,109540.0,1.26373984]
[1751530691587,0.30869281,109550.0,109540.0,1.26373984]
[1751530691788,0.64869281,109550.0,109540.0,1.26373984]
[1751530693385,0.64869281,109550.0,109540.0,1.22745265]
[1751530693585,0.64869281,109550.0,109540.0,1.21675176]
[1751530694278,0.30869281,109550.0,109540.0,1.20937415]
[1751530694484,0.66869281,109550.0,109540.0,1.20937415]
[1751530695086,0.66869281,109550.0,109540.0,0.78517415]
[1751530695384,0.73109281,109550.0,109540.0,0.78517415]
[1751530696695,0.73109281,109550.0,109540.0,0.78517442]
[1751530698289,0.73109281,109550.0,109540.0,0.29008094]
[1751530698494,0.73109281,109550.0,109540.0,0.78517442]
[1751530698797,0.73109281,109550.0,109540.0,0.79886661]
[1751530699996,0.73109281,109550.0,109540.0,0.8532974]
[1751530704105,0.73109281,109550.0,109540.0,0.35820392]
[1751530704307,0.73109281,109550.0,109540.0,0.8532974]
[1751530705404,0.73109281,109550.0,109540.0,0.86166661]
[1751530705704,0.73109281,109550.0,109540.0,0.85096574]
[1751530705904,0.73109281,109550.0,109540.0,0.86166661]
[1751530706105,0.73109281,109550.0,109540.0,0.81836574]
[1751530706304,0.73109281,109550.0,109540.0,0.85946661]
[1751530707205,0.73109281,109550.0,109540.0,0.87588048]
[1751530709606,0.73109281,109550.0,109540.0,0.84548048]
[1751530709804,0.73109281,109550.0,109540.0,0.87778048]
[1751530710611,0.73109281,109550.0,109540.0,0.86136661]
[1751530710906,0.73109281,109550.0,109540.0,0.36627313]
[1751530711108,0.73109281,109550.0,109540.0,0.9157974]
[1751530712712,0.73109281,109550.0,109540.0,0.91651108]
[1751530715308,0.73109281,109550.0,109540.0,0.86208029]
[1751530718317,0.73109281,109550.0,109540.0,0.83445952]
[1751530718518,0.73109281,109550.0,109540.0,0.86233482]
[1751530724111,0.73109281,109550.0,109540.0,0.85163395]
[1751530724318,0.73109281,109550.0,109540.0,0.86233483]
[1751530726221,0.73109281,109550.0,109540.0,0.91676562]
[1751530727423,0.73109281,109550.0,109540.0,0.86233483]
[1751530731325,0.73109281,109550.0,109540.0,0.91676562]
[1751530732820,0.73109281,109550.0,109540.0,0.88041304]
[1751530733218,0.73109281,109550.0,109540.0,0.86971216]
[1751530733422,0.73109281,109550.0,109540.0,0.88041304]
[1751530734128,0.73109281,109550.0,109540.0,0.86971216]
[1751530735130,0.73109281,109550.0,109540.0,0.88041304]
[1751530738235,0.66869281,109550.0,109540.0,0.91678875]
[1751530738536,0.66869281,109550.0,109540.0,0.86235796]
[1751530738735,0.68377891,109550.0,109540.0,0.86235796]
[1751530739330,0.68377891,109550.0,109540.0,0.86235753]
[1751530739535,0.68377891,109550.0,109540.0,0.91678832]
[1751530742033,0.66869281,109550.0,109540.0,0.91678832]
[1751530742333,0.68345179,109550.0,109540.0,0.91678832]
[1751530743329,0.68345179,109550.0,109540.0,0.86235753]
[1751530744635,0.68345179,109550.0,109540.0,0.91678832]
[1751530746138,0.68345179,109550.0,109540.0,0.42169484]
[1751530746340,0.68345179,109550.0,109540.0,0.91678832]
[1751530747439,0.68345179,109550.0,109540.0,0.42169484]
[1751530747640,0.68345179,109550.0,109540.0,0.88041261]
[1751530749342,0.68345179,109550.0,109540.0,0.86235694]
[1751530749543,0.68345179,109550.0,109540.0,0.42169425]
[1751530749841,0.68345179,109550.0,109540.0,0.91678773]
[1751530751244,0.68345179,109550.0,109540.0,0.91748342]
[1751530752638,0.74745179,109550.0,109540.0,0.91748342]
[1751530753746,1.35579853,109550.0,109540.0,0.14476954]
[1751530753944,1.38889853,109550.0,109540.0,0.76795263]
[1751530754134,1.14135179,109550.0,109540.0,0.76795263]
[1751530754341,1.14135179,109550.0,109540.0,0.82238342]
[1751530754543,1.14135179,109550.0,109540.0,0.77530742]
[1751530755342,1.14135179,109550.0,109540.0,0.80800742]
[1751530756147,1.14135179,109550.0,109540.0,0.31291394]
[1751530756348,1.38889853,109550.0,109540.0,0.66185916]
[1751530756542,1.38889853,109550.0,109540.0,0.01070113]
[1751530756746,0.1825204,109540.0,109530.0,0.54004674]
[1751530756947,2.30683388,109540.0,109530.0,0.54004674]
[1751530757136,2.05928714,109540.0,109530.0,0.54004674]
[1751530757944,2.06128714,109540.0,109530.0,0.54004674]
[1751530758346,2.06528714,109540.0,109530.0,0.54004674]
[1751530758843,2.06528714,109540.0,109530.0,0.74985589]
[1751530759051,2.06528714,109540.0,109530.0,0.56731911]
[1751530759953,2.06528714,109540.0,109530.0,0.31977237]
[1751530760151,2.31283388,109540.0,109530.0,0.56731911]
[1751530761353,2.06528714,109540.0,109530.0,0.56731911]
[1751530761654,2.06528714,109540.0,109530.0,0.27481911]
[1751530762257,2.29756714,109540.0,109530.0,0.27481911]
[1751530764257,2.29756714,109540.0,109530.0,0.24754674]
[1751530765958,0.1825371,109530.0,109520.0,0.73912617]
[1751530766154,0.6092504,109530.0,109520.0,1.23421965]
[1751530766860,0.6092504,109530.0,109520.0,1.20694728]
[1751530767062,0.6092504,109530.0,109520.0,1.16130938]
[1751530767261,0.6092504,109530.0,109520.0,1.18854479]
[1751530767660,0.6092504,109530.0,109520.0,0.69345131]
[1751530767857,0.6092504,109530.0,109520.0,1.18854479]
[1751530768762,0.6092504,109530.0,109520.0,1.23015529]
[1751530771557,0.6112504,109530.0,109520.0,1.26015529]
[1751530772461,0.5964371,109530.0,109520.0,1.26015529]
[1751530772664,0.5964371,109530.0,109520.0,1.29345529]
[1751530772962,0.61127879,109530.0,109520.0,1.29345529]
[1751530779465,0.61127879,109530.0,109520.0,1.30415786]
[1751530779668,0.58047879,109530.0,109520.0,1.30415786]
[1751530780260,0.58047879,109530.0,109520.0,1.27692245]
[1751530780464,0.58047879,109530.0,109520.0,1.27693559]
[1751530780765,0.58047879,109530.0,109520.0,1.26623302]
[1751530781360,0.58047879,109530.0,109520.0,1.26623837]
[1751530782264,0.58047879,109530.0,109520.0,1.27694094]
[1751530784364,0.54937879,109530.0,109520.0,1.27694094]
[1751530786567,0.54937879,109530.0,109520.0,1.31334319]
[1751530787573,0.54937879,109530.0,109520.0,1.31337233]
[1751530788261,0.54937879,109530.0,109520.0,1.367839]
[1751530791776,0.54937879,109530.0,109520.0,1.33143675]
[1751530793176,0.54937879,109530.0,109520.0,1.33228699]
[1751530794877,0.54937879,109530.0,109520.0,0.97148699]
[1751530795076,0.54937879,109530.0,109520.0,1.33228699]
[1751530796778,0.54937879,109530.0,109520.0,1.33228991]
[1751530801884,0.54937879,109530.0,109520.0,1.33229238]
[1751530803782,0.54937879,109530.0,109520.0,1.33229221]
[1751530809890,0.54937879,109530.0,109520.0,0.97149221]
[1751530810090,0.54937879,109530.0,109520.0,1.33229221]
[1751530811191,0.54937879,109530.0,109520.0,1.33229195]
[1751530814892,0.54937879,109530.0,109520.0,1.36873509]
[1751530815087,0.19937889,109530.0,109520.0,1.61628183]
[1751530815291,0.36108449,109550.0,109540.0,0.1825205]
[1751530815489,0.67671409,109550.0,109540.0,0.78388376]
[1751530815688,0.67671409,109550.0,109540.0,0.81518376]
[1751530815887,0.67671409,109550.0,109540.0,0.82588489]
[1751530816087,0.67671409,109550.0,109540.0,0.85320909]
[1751530816288,0.67671409,109550.0,109540.0,0.82586093]
[1751530816490,0.67671409,109550.0,109540.0,0.88916093]
[1751530816688,0.68071409,109550.0,109540.0,0.88916093]
[1751530816888,0.68071409,109550.0,109540.0,0.8618607]
[1751530817282,0.68071409,109550.0,109540.0,0.88915318]
[1751530819192,0.74621409,109550.0,109540.0,0.88915318]
[1751530819402,0.74621409,109550.0,109540.0,0.85272092]
[1751530822295,0.74621409,109550.0,109540.0,0.84201979]
[1751530823497,0.74621409,109550.0,109540.0,0.84212789]
[1751530823899,0.73145511,109550.0,109540.0,0.84212789]
[1751530825392,0.73145511,109550.0,109540.0,0.85282908]
[1751530831601,0.73145511,109550.0,109540.0,0.3577356]
[1751530831999,0.73145511,109550.0,109540.0,0.84212789]
[1751530834004,0.73145511,109550.0,109540.0,0.87856015]
[1751530837404,0.73145511,109550.0,109540.0,0.84212789]
[1751530841310,0.73145511,109550.0,109540.0,0.87856015]
[1751530842211,0.73145511,109550.0,109540.0,0.88926129]
[1751530844212,0.73145511,109550.0,109540.0,0.85126767]
[1751530844410,0.73145511,109550.0,109540.0,0.86196881]
[1751530845314,0.97900185,109550.0,109540.0,0.08975483]
[1751530845511,1.01030185,109550.0,109540.0,0.33730157]
[1751530846015,1.01030185,109550.0,109540.0,0.36461351]
[1751530846315,1.00930185,109550.0,109540.0,0.36461368]
[1751530847117,1.00330185,109550.0,109540.0,0.36461368]
[1751530847319,1.00830185,109550.0,109540.0,0.36461368]
[1751530847613,1.00830185,109550.0,109540.0,0.11706694]
[1751530847917,1.00830185,109550.0,109540.0,0.36461368]
[1751530848317,1.00830185,109550.0,109540.0,0.35391237]
[1751530849121,0.76075511,109550.0,109540.0,0.35391237]
[1751530849422,1.00830185,109550.0,109540.0,0.35391237]
[1751530850922,1.00830185,109550.0,109540.0,0.35420863]
[1751530854118,1.00830185,109550.0,109540.0,0.36490994]
[1751530854324,1.00830185,109550.0,109540.0,0.35420863]
[1751530854527,1.00830185,109550.0,109540.0,0.36490994]
[1751530854730,1.00830185,109550.0,109540.0,0.32689669]
[1751530854929,0.76075511,109550.0,109540.0,0.50941719]
[1751530855122,1.00830185,109550.0,109540.0,0.75696393]
[1751530855626,0.76075511,109550.0,109540.0,0.75696393]
[1751530856127,1.59231511,109550.0,109540.0,0.78736393]
[1751530856331,1.56101511,109550.0,109540.0,0.78736393]
[1751530856724,0.72945511,109550.0,109540.0,0.78736393]
[1751530856925,1.56101511,109550.0,109540.0,0.78736393]
[1751530857130,0.72945511,109550.0,109540.0,0.78736393]
[1751530857331,1.56101511,109550.0,109540.0,0.81466854]
[1751530860122,1.56101511,109550.0,109540.0,0.81467328]
[1751530860324,1.56101511,109550.0,109540.0,0.78736393]
[1751530860931,1.56101511,109550.0,109540.0,0.79806522]
[1751530862318,1.56101511,109550.0,109540.0,0.79806519]
[1751530864026,1.56101511,109550.0,109540.0,0.7837968]
[1751530864230,1.56101511,109550.0,109540.0,0.79806519]
[1751530864634,1.56101511,109550.0,109540.0,0.7873639]
[1751530865034,0.69875511,109550.0,109540.0,0.7873639]
[1751530865235,1.53023511,109550.0,109540.0,0.8181639]
[1751530865535,1.53023511,109550.0,109540.0,0.86146516]
[1751530865931,1.53023511,109550.0,109540.0,0.8507639]
[1751530866437,1.53023511,109550.0,109540.0,0.90541229]
[1751530867230,0.66695511,109550.0,109540.0,0.86146514]
[1751530867435,1.49839511,109550.0,109540.0,0.86146514]
[1751530869928,1.51359847,109550.0,109540.0,0.86146514]
[1751530873340,1.49839511,109550.0,109540.0,0.86146514]
[1751530873835,1.51352022,109550.0,109540.0,0.86146514]
[1751530875340,1.51352022,109550.0,109540.0,0.90541229]
[1751530876235,0.41208022,109550.0,109540.0,1.27691343]
[1751530876438,0.72208022,109550.0,109540.0,1.25048117]
[1751530877347,0.72208022,109550.0,109540.0,1.28688264]
[1751530878141,0.72208022,109550.0,109540.0,1.23223425]
[1751530879439,0.72208022,109550.0,109540.0,1.28688264]
[1751530880349,0.41208022,109550.0,109540.0,1.25048117]
[1751530881048,0.74208022,109550.0,109540.0,1.25048117]
[1751530881237,0.41208022,109550.0,109540.0,1.25048117]
[1751530883046,0.73208022,109550.0,109540.0,1.25048117]
[1751530884647,0.73208022,109550.0,109540.0,1.2322081]
[1751530885440,0.73208022,109550.0,109540.0,1.28685649]
[1751530886143,0.73208022,109550.0,109540.0,1.25048117]
[1751530887550,0.41208022,109550.0,109540.0,1.25048117]
[1751530888448,0.75208022,109550.0,109540.0,1.25048117]
[1751530889749,0.75208022,109550.0,109540.0,1.25047991]
[1751530892242,0.36645062,109550.0,109540.0,1.25047991]
[1751530892556,0.74645062,109550.0,109540.0,1.25047991]
[1751530893443,0.32082102,109550.0,109540.0,1.25047991]
[1751530897557,0.27519212,109550.0,109540.0,1.25047991]
[1751530898152,0.27519212,109550.0,109540.0,1.49802665]
[1751530898952,0.27519212,109550.0,109540.0,1.48375952]
[1751530899155,0.27519212,109550.0,109540.0,1.2504792]
[1751530900651,0.27519212,109550.0,109540.0,1.19583081]
[1751530900853,0.27519212,109550.0,109540.0,1.25039316]
[1751530901248,0.27519212,109550.0,109540.0,1.19583081]
[1751530902256,0.27519212,109550.0,109540.0,1.25039722]
[1751530902456,0.27519212,109550.0,109540.0,1.19582949]
[1751530902655,0.27519212,109550.0,109540.0,1.26871448]
[1751530903363,0.27519212,109550.0,109540.0,1.25040115]
[1751530904049,0.58519212,109550.0,109540.0,0.74530767]
[1751530904247,0.58519212,109550.0,109540.0,1.24040115]
[1751530904457,0.64799212,109550.0,109540.0,1.24040115]
[1751530904959,0.64799212,109550.0,109540.0,1.21543491]
[1751530905258,0.64799212,109550.0,109540.0,1.24020225]
[1751530907662,0.64799212,109550.0,109540.0,1.21155298]
[1751530907870,0.64799212,109550.0,109540.0,1.23993263]
[1751530910661,0.64799212,109550.0,109540.0,1.22586524]
[1751530910867,0.64799212,109550.0,109540.0,1.23971521]
[1751530911168,0.69799212,109550.0,109540.0,1.23971521]
[1751530913470,0.69799212,109550.0,109540.0,1.23972344]
[1751530914067,0.33799212,109550.0,109540.0,1.23972344]
[1751530914270,0.70799212,109550.0,109540.0,1.23972344]
[1751530917769,0.70799212,109550.0,109540.0,1.2397251]
[1751530919075,0.70799212,109550.0,109540.0,1.21133722]
[1751530919277,0.70799212,109550.0,109540.0,1.23972643]
[1751530920977,0.69286701,109550.0,109540.0,1.23972643]
[1751530921976,0.64286701,109550.0,109540.0,1.23972643]
[1751530922278,0.61266701,109550.0,109540.0,1.23972643]
[1751530922776,0.29266701,109550.0,109540.0,1.23972772]
[1751530923375,0.29266701,109550.0,109540.0,1.25804105]
[1751530923978,0.29266701,109550.0,109540.0,1.18515851]
[1751530924278,0.29266701,109550.0,109540.0,1.23976856]
[1751530925882,0.29266701,109550.0,109540.0,1.22906861]
[1751530926079,0.29266701,109550.0,109540.0,1.23976856]
[1751530926582,0.66266701,109550.0,109540.0,1.23976856]
[1751530929484,0.65266701,109550.0,109540.0,1.23976856]
[1751530930185,0.29266701,109550.0,109540.0,1.23976856]
[1751530930685,0.26006701,109550.0,109540.0,1.23976856]
[1751530931881,0.005,109550.0,109540.0,1.86809024]
[1751530932186,0.3213716,109560.0,109550.0,0.1825039]
[1751530932386,0.3213716,109560.0,109550.0,2.0704721]
[1751530932584,0.2301215,109560.0,109550.0,2.0704721]
[1751530932986,0.30162214,109560.0,109550.0,2.0704721]
[1751530933185,0.30462214,109560.0,109550.0,2.01586191]
[1751530933382,0.30462214,109560.0,109550.0,2.07938474]
[1751530933583,0.30562214,109560.0,109550.0,2.07938474]
[1751530933886,0.30262214,109560.0,109550.0,2.07938474]
[1751530934082,0.30462214,109560.0,109550.0,2.07938474]
[1751530934785,0.30462214,109560.0,109550.0,1.58429126]
[1751530934988,0.30462214,109560.0,109550.0,2.07934079]
[1751530937993,0.30462214,109560.0,109550.0,2.06864084]
[1751530938198,0.30462214,109560.0,109550.0,2.07933247]
[1751530938998,0.30462214,109560.0,109550.0,2.02473489]
[1751530939800,0.30462214,109560.0,109550.0,2.01093355]
[1751530941401,0.30462214,109560.0,109550.0,2.08381854]
[1751530942205,0.30462214,109560.0,109550.0,2.01093355]
[1751530943803,0.30462214,109560.0,109550.0,2.06547953]
[1751530944704,0.30462214,109560.0,109550.0,2.08227699]
[1751530945499,0.30462214,109560.0,109550.0,2.08227677]
[1751530946003,0.30462214,109560.0,109550.0,2.01947677]
[1751530948813,0.30462214,109560.0,109550.0,2.05583758]
[1751530949814,0.30462214,109560.0,109550.0,2.01947677]
[1751530960120,0.30462214,109560.0,109550.0,1.96493079]
[1751530960626,0.30462214,109560.0,109550.0,2.03781578]
[1751530960828,0.30462214,109560.0,109550.0,1.96493079]
[1751530961325,0.30462214,109560.0,109550.0,2.03781578]
[1751530961914,0.30462214,109560.0,109550.0,1.99262666]
[1751530962119,0.30462214,109560.0,109550.0,1.94743646]
[1751530962318,0.30462214,109560.0,109550.0,2.02032145]
[1751530965226,0.30462214,109560.0,109550.0,2.00205102]
[1751530967228,0.30462214,109560.0,109550.0,2.01598878]
[1751530968824,0.30462214,109560.0,109550.0,2.01597074]
[1751530970032,0.30462214,109560.0,109550.0,2.03424117]
[1751530971127,0.30462214,109560.0,109550.0,2.00654638]
[1751530971332,0.30462214,109560.0,109550.0,2.03375471]
[1751530971530,0.30462214,109560.0,109550.0,2.32625471]
[1751530972332,0.30462214,109560.0,109550.0,2.31254517]
[1751530976235,0.30462214,109560.0,109550.0,2.29427597]
[1751530977334,0.30462214,109560.0,109550.0,2.00177597]
[1751530979936,0.30462214,109560.0,109550.0,1.50668249]
[1751530980139,0.30462214,109560.0,109550.0,2.00177597]
[1751530981335,0.2331215,109560.0,109550.0,2.00177597]
[1751530981540,0.1874989,109560.0,109550.0,2.05004517]
[1751530982240,0.1874989,109560.0,109550.0,2.031771]
[1751530983335,0.1874989,109560.0,109550.0,2.294271]
[1751530983540,0.1854989,109560.0,109550.0,2.295271]
[1751530984645,0.1844989,109560.0,109550.0,2.296271]
[1751530986348,0.1844989,109560.0,109550.0,2.28557199]
[1751530988749,0.1844989,109560.0,109550.0,2.29627073]
[1751530988950,0.1844989,109560.0,109550.0,2.30999533]
[1751530989445,0.1844989,109560.0,109550.0,2.3282695]
[1751530990344,0.1844989,109560.0,109550.0,2.3275495]
[1751530990544,0.1844989,109560.0,109550.0,2.3138249]
[1751530991950,0.1844989,109560.0,109550.0,2.32774116]
[1751530992146,0.1844989,109560.0,109550.0,2.30032262]
[1751530992346,0.1844989,109560.0,109550.0,2.22743763]
[1751530993147,0.1844989,109560.0,109550.0,2.27136265]
[1751530993348,0.1844989,109560.0,109550.0,2.28206145]
[1751530995154,0.1844989,109560.0,109550.0,2.25744639]
[1751530995356,0.1844989,109560.0,109550.0,2.28205219]
[1751530998947,0.1844989,109560.0,109550.0,2.30031342]
[1751530999148,0.1844989,109560.0,109550.0,2.30019342]
[1751530999345,0.2148989,109560.0,109550.0,2.30019342]
[1751530999552,0.4466989,109560.0,109550.0,2.30019342]
[1751531003161,0.4466989,109560.0,109550.0,1.39762843]
[1751531003360,0.4466989,109560.0,109550.0,2.22726843]